bitfinex/quotes_SOLUSD_20240604
["timestamp","ask_amount","ask_price","bid_price","bid_amount"]
[1717460882416,2.2431,164.95,164.9,5.42]
[1717460883281,27.323,164.96,164.9,5.42]
[1717460883682,22.243,164.96,164.9,5.42]
[1717460883897,7.323,164.96,164.9,7.6637]
[1717460884090,2.243,164.96,164.9,7.6637]
[1717460884291,7.323,164.96,164.9,7.6637]
[1717460884802,2.243,164.96,164.9,7.6637]
[1717460885005,2.243,164.96,164.91,120.0]
[1717460885198,7.3228,164.97,164.92,0.34]
[1717460885401,7.3229,164.96,164.92,0.34]
[1717460885789,7.3229,164.96,164.93,0.17]
[1717460885980,7.3229,164.96,164.91,0.34]
[1717460886185,2.2429,164.96,164.91,0.34]
[1717460886385,7.3228,164.97,164.91,127.6636]
[1717460886612,20.0,164.96,164.93,5.08]
[1717460886903,20.0,164.98,164.94,0.34]
[1717460888115,2.2426,164.99,164.94,0.34]
[1717460888302,2.2426,164.99,164.94,5.42]
[1717460888715,22.2426,164.99,164.94,5.42]
[1717460889287,20.0,164.99,164.94,7.6632]
[1717460890428,20.0,164.99,164.94,5.42]
[1717460892211,25.08,164.99,164.94,0.34]
[1717460892806,2.2426,164.98,164.94,0.34]
[1717460893923,7.3226,164.98,164.94,0.34]
[1717460894128,2.2428,164.97,164.93,0.34]
[1717460894427,2.2429,164.96,164.93,0.34]
[1717460894626,2.2429,164.96,164.93,0.17]
[1717460894795,7.3228,164.97,164.92,0.34]
[1717460895808,2.2428,164.97,164.92,0.34]
[1717460896418,20.0,164.97,164.92,7.6635]
[1717460897125,22.2428,164.97,164.92,5.42]
[1717460897624,22.2428,164.97,164.92,7.6635]
[1717460897997,22.2428,164.97,164.92,5.42]
[1717460898312,20.0,164.97,164.92,7.6634]
[1717460898619,2.2427,164.98,164.92,7.6634]
[1717460898813,22.2427,164.98,164.92,7.6634]
[1717460899029,22.2427,164.98,164.92,2.5834]
[1717460899207,20.0,164.98,164.93,162.6625]
[1717460899419,20.0,164.98,164.94,5.42]
[1717460899603,2.2426,164.98,164.94,0.34]
[1717460904304,27.3226,164.99,164.94,0.34]
[1717460904703,22.2426,164.99,164.94,0.34]
[1717460906127,2.2427,164.98,164.94,0.34]
[1717460916332,2.2427,164.98,164.94,6.4502]
[1717460917042,2.2427,164.98,164.94,11.5302]
[1717460917253,22.2427,164.98,164.94,0.34]
[1717460917453,2.2427,164.98,164.94,0.34]
[1717460919635,2.2428,164.97,164.94,0.34]
[1717460920715,2.2427,164.98,164.94,0.34]
[1717460920958,20.0,164.99,164.94,0.34]
[1717460921244,22.2427,164.98,164.94,0.34]
[1717460921617,2.2427,164.98,164.94,0.34]
[1717460923854,2.2427,164.98,164.94,9.40084035]
[1717460925050,2.2426,164.99,164.95,126.3105]
[1717460925258,22.2423,165.01,164.96,0.34]
[1717460925426,2.2424,165.0,164.96,5.42]
[1717460925924,2.2424,165.0,164.97,6.2353]
[1717460926130,2.2423,165.01,164.98,0.34]
[1717460927732,2.2424,165.0,164.98,0.34]
[1717460928631,2.2423,165.01,164.98,0.34]
[1717460930058,2.2424,165.0,164.98,0.34]
[1717460930644,2.2424,165.0,164.99,0.17]
[1717460930863,2.2424,165.0,164.97,0.34]
[1717460932132,20.0,165.02,164.97,0.34]
[1717460932133,2.2425,164.99,164.97,0.34]
[1717460932653,2.2424,165.0,164.97,0.34]
[1717460935443,2.2424,165.0,164.96,0.34]
[1717460935963,5.08,164.99,164.96,0.34]
[1717460936143,5.08,164.99,164.97,0.17]
[1717460936342,7.3224,165.0,164.95,0.34]
[1717460936556,7.3224,165.0,164.95,2.5831]
[1717460937039,5.08,165.0,164.95,2.5831]
[1717460937465,5.08,165.0,164.95,11.64394035]
[1717460939371,7.3223,165.01,164.95,11.64394035]
[1717460939754,7.3223,165.01,164.95,11.64697083]
[1717460939955,7.3223,165.01,164.95,2.5831]
[1717460940645,5.08,165.0,164.95,2.5831]
[1717460942161,7.3225,165.0,164.95,0.34]
[1717460942877,7.3225,165.0,164.95,9.40387083]
[1717460943373,7.3225,165.0,164.95,0.34]
[1717460944673,7.3226,164.99,164.95,0.34]
[1717460945364,7.3226,164.99,164.94,0.34]
[1717460945676,7.3226,164.98,164.94,0.34]
[1717460945977,5.08,164.97,164.94,0.34]
[1717460948480,7.323,164.96,164.94,0.34]
[1717460948642,5.08,164.95,164.93,0.34]
[1717460948851,5.08,164.95,164.94,0.17]
[1717460949152,5.08,164.95,164.92,0.34]
[1717460950781,7.323,164.96,164.92,0.34]
[1717460954490,2.2434,164.93,164.89,9.06263912]
[1717460954707,5.08,164.92,164.89,9.06263912]
[1717460954865,7.3235,164.92,164.87,9.06263912]
[1717460955266,20.0,164.94,164.86,129.06263912]
[1717460955488,5.08,164.93,164.88,2.2439]
[1717460956200,7.3235,164.92,164.87,9.06263912]
[1717460956373,7.3235,164.92,164.86,136.38683912]
[1717460956794,7.3235,164.92,164.87,0.17]
[1717460957087,7.3235,164.92,164.87,0.34]
[1717460957899,2.2438,164.9,164.86,120.0]
[1717460958081,5.08,164.89,164.85,9.06263912]
[1717460958610,5.08,164.89,164.83,9.06263912]
[1717460958896,2.2436,164.91,164.83,9.06263912]
[1717460959062,5.08,164.89,164.83,9.06263912]
[1717460959261,5.08,164.89,164.84,2.2445]
[1717460959491,5.08,164.89,164.85,0.17]
[1717460960090,5.08,164.89,164.85,0.34]
[1717460960485,2.2437,164.9,164.85,0.34]
[1717460960669,5.08,164.9,164.85,2.5844]
[1717460962812,7.3238,164.9,164.85,0.34]
[1717460963321,5.08,164.89,164.85,0.34]
[1717460963693,2.2441,164.87,164.86,0.17]
[1717460963892,2.2446,164.84,164.79,45.47263912]
[1717460964128,7.3246,164.84,164.79,45.47263912]
[1717460964290,2.2444,164.85,164.79,45.47263912]
[1717460964598,2.2449,164.82,164.77,9.06263912]
[1717460964799,5.08,164.8,164.77,9.06263912]
[1717460965023,5.08,164.8,164.75,47.71843912]
[1717460965329,5.08,164.81,164.75,43.7358]
[1717460965688,5.08,164.8,164.74,7.3259]
[1717460965999,5.08,164.8,164.73,59.68]
[1717460966198,5.08,164.82,164.73,120.0]
[1717460966386,5.08,164.81,164.76,2.2456]
[1717460967010,5.08,164.81,164.75,7.3257]
[1717460967197,7.325,164.81,164.75,7.3257]
[1717460967611,7.325,164.81,164.76,0.34]
[1717460968108,5.08,164.81,164.76,0.34]
[1717460969208,5.08,164.81,164.76,2.5856]
[1717460969882,5.08,164.81,164.76,0.34]
[1717460971118,7.325,164.81,164.76,0.34]
[1717460971986,7.325,164.81,164.75,0.34]
[1717460972457,7.325,164.81,164.75,2.5857]
[1717460972588,6.0897,164.84,164.77,5.08]
[1717460972789,25.08,164.83,164.78,0.34]
[1717460972989,27.3247,164.83,164.78,0.34]
[1717460974220,20.0,164.83,164.78,120.34]
[1717460974428,7.3243,164.86,164.79,7.3251]
[1717460974586,5.08,164.86,164.8,127.6651]
[1717460974786,7.3242,164.87,164.81,5.25]
[1717460975023,13.9674,164.87,164.82,0.17]
[1717460975500,2.2443,164.86,164.81,0.34]
[1717460975705,22.2443,164.86,164.81,0.34]
[1717460976711,2.2444,164.85,164.81,0.34]
[1717460977701,7.3244,164.85,164.81,0.34]
[1717460978319,2.2444,164.85,164.81,0.17]
[1717460978512,2.2446,164.84,164.8,0.34]
[1717460978713,7.3246,164.84,164.81,0.17]
[1717460978930,7.3246,164.84,164.79,5.42]
[1717460979219,7.3245,164.85,164.79,7.6652]
[1717460980729,2.2445,164.85,164.79,7.6652]
[1717460982802,2.2446,164.84,164.79,5.42]
[1717460983007,7.3245,164.85,164.79,7.6652]
[1717460983428,2.2446,164.84,164.79,5.42]
[1717460984629,2.2448,164.82,164.76,2.2455]
[1717460984829,2.2448,164.82,164.75,122.2457]
[1717460984830,2.245,164.81,164.75,122.2457]
[1717460985025,2.245,164.81,164.75,127.3257]
[1717460985211,5.08,164.82,164.73,156.41]
[1717460985528,6.4171,164.84,164.74,7.3258]
[1717460985529,2.2451,164.8,164.74,7.3258]
[1717460985932,5.08,164.8,164.75,2.2458]
[1717460986123,7.325,164.81,164.75,2.2458]
[1717460986306,5.08,164.81,164.76,2.2456]
[1717460986931,5.08,164.81,164.77,0.34]
[1717460988512,7.325,164.81,164.77,0.34]
[1717460988809,7.325,164.81,164.76,0.34]
[1717460989011,7.3249,164.82,164.76,2.5856]
[1717460989225,20.0,164.81,164.76,2.5856]
[1717460989836,27.325,164.81,164.76,0.34]
[1717460990432,8.711,164.8,164.74,2.2459]
[1717460990734,27.325,164.81,164.75,2.2458]
[1717460990939,27.325,164.81,164.75,122.2458]
[1717460991838,27.325,164.81,164.76,0.34]
[1717460993535,22.245,164.81,164.76,0.34]
[1717460993731,2.245,164.81,164.76,2.5856]
[1717460994040,2.245,164.81,164.76,0.34]
[1717460994741,22.245,164.81,164.76,0.34]
[1717460995126,22.245,164.81,164.76,2.5856]
[1717460995327,20.0,164.81,164.76,2.5856]
[1717460996637,22.245,164.81,164.76,2.5856]
[1717460996827,20.0,164.81,164.76,7.6656]
[1717460997149,2.2446,164.84,164.79,5.08]
[1717460997337,2.2446,164.84,164.8,0.34]
[1717460997934,22.2446,164.84,164.8,0.34]
[1717461000155,2.2445,164.85,164.81,5.08]
[1717461000365,2.2443,164.86,164.82,5.42]
[1717461000652,2.2444,164.85,164.82,0.34]
[1717461000829,2.2444,164.85,164.82,0.17]
[1717461001159,2.2444,164.85,164.81,0.34]
[1717461002738,2.2449,164.82,164.8,0.17]
[1717461003229,5.08,164.83,164.79,0.17]
[1717461003230,7.3247,164.83,164.79,0.17]
[1717461003553,7.3246,164.84,164.79,0.17]
[1717461003937,6.5245,164.83,164.79,5.08]
[1717461004260,2.2452,164.8,164.78,9.08016261]
[1717461004432,2.2452,164.8,164.77,9.08016261]
[1717461004625,2.245,164.81,164.77,9.08016261]
[1717461004839,5.08,164.81,164.77,9.08016261]
[1717461005150,7.3251,164.8,164.77,9.08016261]
[1717461005334,22.2451,164.8,164.78,0.17]
[1717461005541,2.2452,164.79,164.77,0.17]
[1717461005847,22.2452,164.8,164.77,0.17]
[1717461006346,22.2452,164.8,164.77,0.34]
[1717461007227,2.2452,164.79,164.77,0.34]
[1717461007738,22.2451,164.8,164.77,0.34]
[1717461009231,20.0,164.8,164.77,0.34]
[1717461009446,20.0,164.8,164.78,9.08559812]
[1717461009741,22.245,164.81,164.79,0.34]
[1717461010630,22.245,164.81,164.8,0.17]
[1717461010838,22.245,164.81,164.78,9.42559812]
[1717461011656,22.245,164.81,164.79,9.08559812]
[1717461011853,22.245,164.81,164.8,0.17]
[1717461012026,22.245,164.81,164.78,9.42559812]
[1717461012227,2.2451,164.8,164.78,9.42559812]
[1717461012536,7.3251,164.8,164.78,0.34]
[1717461012852,7.3251,164.8,164.78,0.17]
[1717461013046,7.3251,164.8,164.77,0.34]
[1717461013432,2.2453,164.79,164.77,0.34]
[1717461013757,2.2453,164.79,164.77,0.17]
[1717461013940,2.2453,164.79,164.77,9.25559812]
[1717461014557,2.2453,164.79,164.77,0.17]
[1717461015267,7.3252,164.8,164.77,0.17]
[1717461015662,2.2452,164.8,164.77,0.17]
[1717461016635,2.2452,164.8,164.77,0.34]
[1717461017050,2.2452,164.8,164.77,9.42896215]
[1717461018633,27.325,164.81,164.77,9.42896215]
[1717461019062,22.245,164.81,164.77,9.42896215]
[1717461019851,2.2451,164.8,164.77,9.42896215]
[1717461020858,7.3251,164.8,164.77,0.34]
[1717461021772,7.3251,164.8,164.77,0.17]
[1717461022065,11.1078,164.78,164.76,9.08896215]
[1717461022238,27.3255,164.77,164.76,9.08896215]
[1717461022435,2.2458,164.75,164.74,9.09224125]
[1717461022631,7.3258,164.75,164.73,9.09224125]
[1717461023649,2.2457,164.76,164.73,9.09224125]
[1717461023831,22.2455,164.77,164.73,9.09224125]
[1717461024030,2.2455,164.77,164.73,9.09224125]
[1717461024257,2.2457,164.76,164.73,9.09224125]
[1717461024560,10.5176,164.82,164.73,14.17224125]
[1717461024853,10.5176,164.82,164.72,156.41]
[1717461024854,5.08,164.8,164.76,9.09224125]
[1717461025034,7.3252,164.8,164.77,0.17]
[1717461025365,7.325,164.81,164.77,0.34]
[1717461025856,2.2451,164.8,164.77,0.34]
[1717461026050,22.2451,164.8,164.77,0.34]
[1717461026358,4.4892,164.84,164.77,9.43224125]
[1717461026573,2.2449,164.82,164.77,14.51224125]
[1717461026735,2.2449,164.82,164.78,5.08]
[1717461026934,6.5077,164.86,164.8,5.08]
[1717461027249,2.2447,164.84,164.81,0.34]
[1717461027554,2.2445,164.85,164.81,0.34]
[1717461027770,4.4879,164.89,164.81,5.42]
[1717461027942,2.2442,164.87,164.81,2.5849]
[1717461028148,2.2442,164.87,164.83,5.08]
[1717461028346,2.2442,164.87,164.84,0.34]
[1717461028549,2.2441,164.88,164.84,0.34]
[1717461028943,2.2441,164.88,164.84,5.42]
[1717461031071,2.2442,164.87,164.84,0.34]
[1717461031261,2.2443,164.86,164.85,0.17]
[1717461031451,5.08,164.87,164.83,0.34]
[1717461031640,5.08,164.86,164.83,0.17]
[1717461031840,2.2445,164.85,164.82,0.17]
[1717461032051,2.2445,164.85,164.81,5.25]
[1717461032241,22.2443,164.86,164.81,5.25]
[1717461033168,22.2443,164.86,164.82,0.17]
[1717461034142,2.2443,164.86,164.82,5.25]
[1717461034361,2.2443,164.86,164.83,0.17]
[1717461034546,2.2442,164.87,164.83,0.17]
[1717461034871,2.2442,164.87,164.83,5.25]
[1717461035047,2.2442,164.87,164.84,0.17]
[1717461036083,2.244,164.88,164.84,0.17]
[1717461036241,22.244,164.88,164.84,5.25]
[1717461036447,2.244,164.88,164.85,0.17]
[1717461038971,2.2438,164.9,164.86,5.08]
[1717461039174,2.2438,164.9,164.87,5.25]
[1717461040179,2.2438,164.9,164.88,0.17]
[1717461040548,2.2436,164.91,164.88,0.17]
[1717461040881,2.2436,164.91,164.87,0.34]
[1717461041078,2.2438,164.9,164.87,0.34]
[1717461041989,22.2434,164.93,164.89,5.08]
[1717461042159,2.2434,164.93,164.9,0.34]
[1717461042360,22.2435,164.92,164.9,5.42]
[1717461042564,9.566,164.96,164.9,5.42]
[1717461042768,2.2432,164.94,164.9,5.42]
[1717461043283,2.2432,164.94,164.91,5.08]
[1717461043450,2.2432,164.94,164.92,0.53766208]
[1717461044360,2.2432,164.94,164.91,5.08]
[1717461044559,2.2433,164.93,164.92,0.17]
[1717461044863,2.2433,164.93,164.9,0.34]
[1717461045262,2.2435,164.92,164.9,0.34]
[1717461045465,2.2434,164.93,164.9,0.34]
[1717461045976,2.2434,164.93,164.89,0.34]
[1717461046168,2.2434,164.93,164.89,11.9474]
[1717461046367,2.2432,164.94,164.89,11.9474]
[1717461046569,2.2433,164.93,164.89,6.8674]
[1717461046761,2.2433,164.93,164.89,11.9474]
[1717461046963,2.2432,164.94,164.89,11.9474]
[1717461047476,2.2433,164.93,164.89,11.9474]
[1717461048182,2.2432,164.94,164.9,11.297]
[1717461048485,2.2432,164.94,164.91,6.557]
[1717461049784,2.2432,164.94,164.91,0.34]
[1717461049985,2.2434,164.93,164.91,0.17]
[1717461050178,2.2434,164.93,164.87,49.9426]
[1717461050488,2.2434,164.93,164.88,0.34]
[1717461051079,7.3236,164.92,164.86,2.2442]
[1717461051290,2.2438,164.9,164.84,158.6544]
[1717461051482,2.2438,164.9,164.85,5.08]
[1717461051860,2.2438,164.9,164.85,7.3244]
[1717461052566,7.3236,164.91,164.86,2.5843]
[1717461052761,2.2436,164.91,164.86,2.5843]
[1717461053204,2.2436,164.91,164.86,0.34]
[1717461053768,22.2436,164.91,164.86,0.34]
[1717461054405,20.0,164.91,164.86,0.34]
[1717461054567,2.2437,164.9,164.85,5.42]
[1717461054762,22.2437,164.9,164.85,5.42]
[1717461055078,2.2437,164.9,164.85,0.34]
[1717461055503,22.2437,164.9,164.85,0.34]
[1717461055981,20.0,164.9,164.85,0.34]
[1717461056169,7.3239,164.89,164.85,0.34]
[1717461056981,22.2438,164.9,164.85,0.34]
[1717461057180,7.3239,164.89,164.85,0.34]
[1717461057694,6.0433,164.91,164.79,15.61838231]
[1717461057905,5.08,164.85,164.8,2.245]
[1717461058210,7.3244,164.85,164.79,16.39488231]
[1717461058412,5.08,164.85,164.8,2.2451]
[1717461058575,7.3244,164.85,164.79,7.3252]
[1717461059101,2.2443,164.86,164.8,2.2451]
[1717461059417,5.08,164.85,164.8,2.2451]
[1717461059578,7.3243,164.86,164.8,2.2451]
[1717461059777,7.3243,164.86,164.81,0.17]
[1717461060098,2.2442,164.87,164.81,2.585]
[1717461060267,2.2442,164.87,164.81,127.665]
[1717461060668,2.2442,164.87,164.82,5.08]
[1717461060968,2.2444,164.85,164.83,0.34]
[1717461061169,2.2444,164.85,164.81,0.17]
[1717461061382,25.08,164.86,164.81,0.17]
[1717461061383,5.08,164.84,164.81,0.17]
[1717461061577,7.3247,164.84,164.81,0.17]
[1717461062306,7.3247,164.84,164.78,2.2453]
[1717461062307,7.3246,164.84,164.78,2.2453]
[1717461062683,7.3246,164.84,164.78,7.3253]
[1717461062891,2.2444,164.85,164.79,7.3252]
[1717461063194,2.2444,164.85,164.8,5.08]
[1717461063586,22.2444,164.85,164.8,5.08]
[1717461063791,20.0,164.85,164.81,0.34]
[1717461064591,2.2444,164.85,164.81,0.34]
[1717461065477,11.2177,164.92,164.82,5.08]
[1717461065678,5.08,164.89,164.83,5.42]
[1717461065910,5.08,164.89,164.83,5.25]
[1717461066072,5.08,164.89,164.84,0.17]
[1717461066480,5.08,164.91,164.84,0.17]
[1717461066681,6.7298,164.94,164.84,0.17]
[1717461066682,2.2433,164.94,164.88,7.3239]
[1717461066916,2.2433,164.94,164.89,5.42]
[1717461067416,2.2433,164.94,164.89,0.34]
[1717461067715,7.3233,164.94,164.89,0.34]
[1717461068006,22.2434,164.93,164.89,0.34]
[1717461068210,2.2435,164.92,164.88,0.34]
[1717461069413,2.2434,164.93,164.88,0.34]
[1717461070609,20.0,164.95,164.88,0.34]
[1717461070610,2.2437,164.91,164.88,0.34]
[1717461071187,2.2437,164.91,164.88,0.17]
[1717461071892,2.2435,164.92,164.88,0.17]
[1717461072110,2.2435,164.92,164.87,0.34]
[1717461072912,2.2436,164.91,164.87,0.34]
[1717461073715,2.2435,164.92,164.87,0.34]
[1717461074401,2.2435,164.92,164.87,2.5841]
[1717461074613,20.0,164.93,164.88,8.6691]
[1717461074824,2.2433,164.94,164.89,0.34]
[1717461075336,2.2434,164.93,164.89,0.34]
[1717461075822,2.2432,164.94,164.89,122.5839]
[1717461076006,2.2432,164.94,164.89,8.9923]
[1717461076795,2.2435,164.92,164.87,11.31458292]
[1717461077022,2.2435,164.92,164.86,2.2442]
[1717461077191,20.0,164.93,164.86,2.2442]
[1717461077715,2.2435,164.92,164.86,2.2442]
[1717461078101,2.2435,164.92,164.87,0.17]
[1717461078519,2.2435,164.92,164.87,0.34]
[1717461078818,2.2436,164.91,164.87,0.34]
[1717461079024,2.2436,164.91,164.86,0.34]
[1717461079224,2.2436,164.91,164.86,0.17]
[1717461080320,2.2437,164.9,164.86,0.17]
[1717461080631,2.2437,164.9,164.85,0.34]
[1717461080800,2.2437,164.9,164.85,2.5844]
[1717461081219,4.4873,164.91,164.85,0.34]
[1717461081438,2.2441,164.88,164.84,0.34]
[1717461081748,2.2441,164.88,164.85,0.17]
[1717461082041,2.2441,164.88,164.83,0.17]
[1717461082435,2.2442,164.87,164.82,11.31518292]
[1717461082742,2.244,164.88,164.82,11.31518292]
[1717461083308,2.244,164.88,164.82,9.07048292]
[1717461083630,2.2439,164.89,164.83,2.2447]
[1717461083841,20.0,164.9,164.84,0.17]
[1717461083842,2.244,164.88,164.84,0.17]
[1717461084033,4.4878,164.89,164.84,0.17]
[1717461084242,2.2442,164.87,164.83,0.34]
[1717461087121,20.0,164.9,164.83,2.5847]
[1717461087455,2.2439,164.89,164.84,2.2445]
[1717461087616,2.2439,164.89,164.85,0.34]
[1717461087818,22.2439,164.89,164.85,0.34]
[1717461092938,22.2439,164.89,164.84,0.34]
[1717461094525,2.2438,164.9,164.85,5.06]
[1717461094747,2.2438,164.9,164.86,5.4]
[1717461095348,2.2439,164.89,164.86,0.34]
[1717461095657,2.244,164.88,164.86,0.34]
[1717461095962,2.244,164.88,164.84,5.06]
[1717461095963,2.244,164.88,164.85,0.34]
[1717461096477,2.244,164.88,164.84,5.4]
[1717461096955,2.244,164.88,164.84,0.34]
[1717461097384,2.2439,164.89,164.85,5.06]
[1717461097534,2.2439,164.89,164.86,0.34]
[1717461098967,20.0,164.9,164.86,5.4]
[1717461099264,2.2433,164.94,164.89,7.3038]
[1717461099463,2.2433,164.94,164.92,5.06]
[1717461102168,2.2433,164.94,164.93,5.06]
[1717461102554,2.2431,164.95,164.93,5.23]
[1717461102837,11.2124,165.0,164.93,5.23]
[1717461103037,4.4851,164.99,164.94,5.4]
[1717461103265,4.4851,164.99,164.95,5.06]
[1717461103647,2.2427,164.98,164.96,0.17]
[1717461104045,15.6933,165.04,164.96,5.23]
[1717461104239,2.2425,164.99,164.97,0.17]
[1717461104750,0.8089712,165.05,164.98,5.06]
[1717461104960,0.8089712,165.05,165.0,5.06]
[1717461105151,2.242,165.03,165.01,0.34]
[1717461105539,0.8089712,165.05,165.01,0.34]
[1717461105739,5.8689712,165.05,165.01,0.17]
[1717461105965,2.2421,165.02,165.01,0.17]
[1717461106340,2.2421,165.02,165.0,0.34]
[1717461106962,2.2421,165.02,164.99,0.34]
[1717461107172,2.2421,165.02,165.0,0.17]
[1717461107371,2.2421,165.02,164.98,5.4]
[1717461107744,22.2419,165.04,165.0,5.06]
[1717461108052,2.2419,165.04,165.01,5.4]
[1717461108262,3.0507712,165.05,165.01,5.4]
[1717461108461,0.8089712,165.05,165.02,5.06]
[1717461108776,0.8089712,165.05,165.03,5.4]
[1717461109635,0.8089712,165.05,165.03,122.5819]
[1717461109840,0.8089712,165.05,165.04,5.06]
[1717461110038,0.8089712,165.05,165.04,5.4]
[1717461110245,0.8089712,165.05,165.04,0.17]
[1717461111643,0.8089712,165.05,165.03,0.17]
[1717461111838,0.8089712,165.05,165.02,0.17]
[1717461112079,3.0506712,165.05,165.02,0.17]
[1717461112586,0.8089712,165.05,165.02,0.17]
[1717461112755,0.8089712,165.05,165.02,0.34]
[1717461112953,3.0507712,165.05,165.02,0.34]
[1717461113169,3.0507712,165.05,165.03,0.17]
[1717461113350,3.0507712,165.05,165.01,0.34]
[1717461113757,0.8089712,165.05,165.01,0.34]
[1717461114292,3.0506712,165.05,165.01,0.34]
[1717461114975,2.2419,165.04,165.02,0.17]
[1717461115159,2.2419,165.04,165.0,0.34]
[1717461115483,2.2419,165.04,165.0,0.17]
[1717461115653,2.2419,165.04,164.99,0.34]
[1717461116283,2.2419,165.04,164.99,2.5825]
[1717461117374,2.242,165.03,164.99,0.34]
[1717461117551,2.242,165.03,164.98,2.5826]
[1717461120267,2.242,165.03,164.98,0.34]
[1717461121160,2.2419,165.04,164.98,0.34]
[1717461121357,2.242,165.03,164.99,0.17]
[1717461121593,2.2419,165.04,164.99,0.34]
[1717461121886,2.242,165.03,164.99,0.34]
[1717461122375,2.2421,165.02,164.99,0.34]
[1717461122672,2.2423,165.01,164.99,0.17]
[1717461122897,6.3678,165.04,164.99,0.17]
[1717461123063,2.2424,165.0,164.95,2.2431]
[1717461123265,2.2423,165.01,164.96,0.17]
[1717461123591,2.2423,165.01,164.96,2.4129]
[1717461124394,2.2423,165.01,164.97,0.17]
[1717461126598,2.2422,165.02,164.97,0.17]
[1717461126790,22.242,165.03,164.97,2.4128]
[1717461126995,22.242,165.03,164.98,0.17]
[1717461127495,22.242,165.03,164.98,2.4126]
[1717461127687,22.2421,165.02,164.99,0.17]
[1717461128004,2.2421,165.02,164.99,0.17]
[1717461128383,2.2421,165.02,164.98,0.34]
[1717461130076,2.2423,165.01,164.98,0.34]
[1717461130277,2.2423,165.01,164.99,0.34]
[1717461130485,2.2423,165.01,164.97,0.34]
[1717461130899,2.2422,165.02,164.97,0.34]
[1717461131101,2.2422,165.02,164.97,2.5828]
[1717461131701,2.2422,165.02,164.97,0.34]
[1717461132716,2.2422,165.01,164.97,0.34]
[1717461133013,2.2424,165.0,164.97,0.34]
[1717461133309,2.2423,165.01,164.98,0.34]
[1717461133518,2.2422,165.02,164.96,2.5829]
[1717461135596,2.2423,165.01,164.96,2.5829]
[1717461135919,2.2424,165.0,164.97,5.05]
[1717461136093,2.2424,165.0,164.98,0.17]
[1717461136406,2.2423,165.01,164.97,5.05]
[1717461136615,2.2423,165.01,164.98,0.17]
[1717461137811,20.0,165.03,164.98,0.17]
[1717461137997,5.8589712,165.05,164.98,5.39]
[1717461138201,2.2422,165.01,164.98,0.34]
[1717461138792,2.2422,165.02,164.98,0.34]
[1717461138993,2.2422,165.01,164.98,0.34]
[1717461140292,2.2422,165.01,164.97,0.34]
[1717461140491,2.2422,165.01,164.97,5.39]
[1717461141510,2.2422,165.01,164.97,0.34]
[1717461142101,2.2422,165.02,164.97,5.39]